Cogmind - Beta 11.1 @@@ ROGUE MODE // 2022.12.08 @ 15:48:07 Player: QQQQ Result: Self-destructed Performance ------------- Evolutions (2) 1000 Regions Visited (5) 1000 Robots Destroyed (11) 55 Value Destroyed (407) 407 Prototype IDs (23) 460 Alien Tech Used (0) 0 Bonus (300) 300 TOTAL SCORE: 3222 Bonus ------- Aligned with FarCom 300 Cogmind --------- Core Integrity 505/550 Matter 300/300 Energy 160/160 System Corruption 0% Temperature Cool (0) Movement Treading (160) Location -8/Materials Parts ------- > --- POWER (1) -------- Light Nuclear Core > --- PROPULSION (3) --- Light Treads Light Treads Light Treads > --- UTILITY (4) ------ Improved Heat Sink Medium Storage Unit Targeting Computer Particle Charger > --- WEAPON (3) ------- Heavy Laser Heavy Laser Heavy Laser > --- INVENTORY (10) --- Xenon Bombardment Thruster Xenon Bombardment Thruster Xenon Bombardment Thruster Xenon Bombardment Thruster Improved Heat Sink Heavy Laser AWS/Autocannon Peak State ------------ > --- POWER ------------ Light Ion Engine > --- PROPULSION ------- Light Treads Light Treads > --- UTILITY ---------- Medium Storage Unit Targeting Computer > --- WEAPON ----------- AWS/Autocannon > --- INVENTORY -------- Light Ion Engine Grenade Launcher [Rating: 35] Favorites ----------- Power Light Ion Engine Engine Light Ion Engine Power Core Light Nuclear Core Propulsion Light Treads Treads Light Treads Leg Aluminum Leg Wheel Wheel Flight Unit Xenon Bombardment Thruster Utility Targeting Computer Device Particle Charger Storage Medium Storage Unit Processor Targeting Computer Weapon EM Pulse Gun Energy Gun EM Pulse Gun Ballistic Cannon AWS/Autocannon Build | -11 -10 -10 -10 -9 -8 ------- Run | Scr Mat Min Exi Min Mat Slots Evolved 4 | . . . . . 4 Power . | . . . . . . Propulsion 1 | . . . . . 1 Utility 2 | . . . . . 2 Weapon 1 | . . . . . 1 Parts Attached 30 | 7 1 3 3 . 16 Power 3 | 1 . . . . 2 Engine 2 | 1 . . . . 1 Core 1 | . . . . . 1 Reactor . | . . . . . . Propulsion 12 | 2 . 2 2 . 6 Treads 5 | . . . 2 . 3 Leg 2 | . . 2 . . . Wheel 2 | 2 . . . . . Hover . | . . . . . . Flight 3 | . . . . . 3 Utility 5 | 1 1 . 1 . 2 Device 2 | . . . . . 2 Storage 2 | 1 . . 1 . . Processor 1 | . 1 . . . . Hackware . | . . . . . . Protection . | . . . . . . Artifact . | . . . . . . Weapon 10 | 3 . 1 . . 6 Energy Gun 9 | 3 . 1 . . 5 Energy Cannon . | . . . . . . Ballistic Gun . | . . . . . . Ballistic Cannon 1 | . . . . . 1 Launcher . | . . . . . . Special Weapon . | . . . . . . Impact Weapon . | . . . . . . Slashing Weapon . | . . . . . . Piercing Weapon . | . . . . . . Special Melee Weapon . | . . . . . . Unidentified Prototypes . | . . . . . . Parts Lost 2 | . . 2 . . . Power . | . . . . . . Propulsion 1 | . . 1 . . . Utility . | . . . . . . Weapon 1 | . . 1 . . . Highest Loss Streak 2 | . . 2 . . . To Critical Strikes . | . . . . . . Average Slot Usage (%) 92 | . 92 84 100 100 81 Engine 11 | . 14 14 14 14 7 Treads 12 | . . . 8 28 18 Leg 9 | . . 2 19 . . Wheel 2 | . 28 18 . . . Flight 2 | . . . . . 7 Device 2 | . . . . . 8 Storage 12 | . 14 14 14 14 9 Processor 12 | . 7 14 14 14 9 Energy Gun 24 | . 28 19 28 28 19 Naked Turns . | . . . . . . Heaviest Build 73 | 12 12 12 16 16 73 Greatest Support 60 | 20 20 20 40 40 60 Greatest Overweight (x) 1 | . . . . . 1 Average Overweight (x) . | . . . . . . Largest Inventory Capacity 10 | 8 8 8 10 10 10 Average Capacity 9 | 7 8 8 9 10 10 Most Carried 10 | 6 7 7 6 5 10 Average Carried 5 | 3 6 6 4 5 8 Final Capacity 10 | 8 8 8 10 10 10 Final Carried 9 | 6 7 4 5 5 9 Class Distribution -------------------- 81% | Mutant 18% | Gunner Dominant Class ---------------- Mutant | -10/Materials Mutant | -10/Mines Mutant | -10/Exiles Mutant | -9/Mines Gunner | -8/Materials Resources | -11 -10 -10 -10 -9 -8 ----------- Run | Scr Mat Min Exi Min Mat Matter Collected 490 | 197 . 73 . . 220 Remotely . | . . . . . . Salvage Created 506 | . . 90 . . 416 Parts 19 | . . 6 . . 13 Haulers Intercepted . | . . . . . . Recyclers Shooed . | . . . . . . Parts Field Recycled . | . . . . . . Retrieved Matter . | . . . . . . Parts Self-Destructed . | . . . . . . Prevented . | . . . . . . Kills | -11 -10 -10 -10 -9 -8 ------- Run | Scr Mat Min Exi Min Mat Combat Hostiles Destroyed 9 | . . 2 . . 7 Guns 8 | . . 1 . . 7 AOE 1 | . . 1 . . . Classes Destroyed 4 | . . 1 . . 3 Worker 2 | . . . . . 2 Grunt 6 | . . 2 . . 4 Brawler 1 | . . . . . 1 Sentry 2 | . . . . . 2 Best Kill Streak 4 | . . 2 . . 4 Combat Bots Only 3 | . . 2 . . 3 Max Kills in Single Turn 2 | . . 1 . . 2 Gunslinging . | . . . . . . Exploded 1 | . . 1 . . . Melee . | . . . . . . Uniques/NPCs Destroyed . | . . . . . . Combat | -11 -10 -10 -10 -9 -8 -------- Run | Scr Mat Min Exi Min Mat Damage Taken 389 | . . 172 . . 217 Core 92 | . . 47 . . 45 Absorbed by Shields . | . . . . . . Core Remaining (%) 90 | 100 . . . 81 . Volleys Fired 23 | . . 10 . . 13 Largest 3 | . . 2 . . 3 Hottest 207 | . . 80 . . 207 Shots Fired 45 | . . 12 . . 33 Gun 45 | . . 12 . . 33 Cannon . | . . . . . . Launcher . | . . . . . . Special . | . . . . . . Kinetic . | . . . . . . Thermal 33 | . . . . . 33 Explosive . | . . . . . . Electromagnetic 12 | . . 12 . . . Robot Hit Streak 10 | . . 8 . . 10 Robot Miss Streak 1 | . . 1 . . 1 Penetration Max . | . . . . . . Secondary Targets . | . . . . . . Shots Hit Robots 27 | . . 9 . . 18 Core Hits 19 | . . 5 . . 14 Critical Kills . | . . . . . . Critical Parts Destroyed . | . . . . . . Critical Strikes 3 | . . 2 . . 1 Burn 1 | . . . . . 1 Corrupt 2 | . . 2 . . . Melee Attacks . | . . . . . . Impact . | . . . . . . Slashing . | . . . . . . Piercing . | . . . . . . Sneak Attacks . | . . . . . . Combat Hostiles . | . . . . . . Follow-up Attacks . | . . . . . . Damage Inflicted 632 | . . 208 . . 424 Guns 530 | . . 106 . . 424 Cannons . | . . . . . . Explosions 102 | . . 102 . . . Melee . | . . . . . . Ramming . | . . . . . . Kinetic . | . . . . . . Thermal 526 | . . 102 . . 424 Explosive . | . . . . . . Electromagnetic 106 | . . 106 . . . Impact . | . . . . . . Slashing . | . . . . . . Piercing . | . . . . . . Highest Corruption . | . . . . . . Average Corruption . | . . . . . . Corruption Purged . | . . . . . . Corruption Blocked . | . . . . . . Overload Shots . | . . . . . . Overflow Damage 16 | . . 16 . . . Projectiles . | . . . . . . Explosions 16 | . . 16 . . . Melee . | . . . . . . Knockbacks . | . . . . . . Impact . | . . . . . . Kinetic . | . . . . . . Secondary . | . . . . . . Self-Inflicted Damage 67 | . . 67 . . . Shots 2 | . . 2 . . . Rammed . | . . . . . . Targets Rammed . | . . . . . . Kicked . | . . . . . . Crushed . | . . . . . . Highest Temperature 293 | . . 129 . . 293 Average Temperature 117 | . . 76 . . 128 Received Heat Transfer 222 | . . 78 . . 144 Siege Activations . | . . . . . . Robots Corrupted . | . . . . . . Combat Hostiles . | . . . . . . Parts Fried 1 | . . 1 . . . Impact Corruptions . | . . . . . . Robots Melted . | . . . . . . Combat Hostiles . | . . . . . . Parts Melted 1 | . . . . . 1 Heat Transferred 964 | . . 150 . . 814 Parts Sabotaged . | . . . . . . Parts Stolen . | . . . . . . Parts Stripped . | . . . . . . Power Chain Reactions 1 | . . 1 . . . Missiles Intercepted . | . . . . . . Alert | -11 -10 -10 -10 -9 -8 ------- Run | Scr Mat Min Exi Min Mat Peak Influence 223 | . . 54 . . 223 Initial . | . . . . . . Average 69 | . . 34 . . 120 Maximum Alert Level 1 | . . . . . 1 Low Security (%) 83 | 100 100 100 . 100 69 Level 1 16 | . . . . . 30 Level 2 . | . . . . . . Level 3 . | . . . . . . Level 4 . | . . . . . . Level 5 . | . . . . . . High Security . | . . . . . . Max Security . | . . . . . . Squads Dispatched 2 | . . . . . 2 Investigation . | . . . . . . Extermination . | . . . . . . Reinforcement 2 | . . . . . 2 Assault . | . . . . . . Garrison . | . . . . . . Intercept . | . . . . . . Searches Triggered . | . . . . . . Construction Impeded . | . . . . . . Haulers Reinforced . | . . . . . . Active Scanning Responses . | . . . . . . Cargo Convoy Interrupts . | . . . . . . Stealth | -11 -10 -10 -10 -9 -8 --------- Run | Scr Mat Min Exi Min Mat Distress Signals . | . . . . . . Communications Jammed . | . . . . . . Distress Signals . | . . . . . . Times Spotted 12 | . . 2 . . 10 Peak Tracking Total 3 | . . 2 . . 3 Tactical Retreats 1 | . . . . . 1 Traps | -11 -10 -10 -10 -9 -8 ------- Run | Scr Mat Min Exi Min Mat Traps Triggered . | . . . . . . Indirectly . | . . . . . . Trap Hack Attempts . | . . . . . . Triggered . | . . . . . . Disarmed . | . . . . . . Reprogrammed . | . . . . . . Reused . | . . . . . . Traps Extracted . | . . . . . . Installed . | . . . . . . Triggered . | . . . . . . Machines | -11 -10 -10 -10 -9 -8 ---------- Run | Scr Mat Min Exi Min Mat Machines Disabled 1 | . . 1 . . . Max in Single Turn 1 | . . 1 . . . Machines Sabotaged . | . . . . . . Garrisons Compromised . | . . . . . . Overloaded Fab Kills . | . . . . . . Hacking | -11 -10 -10 -10 -9 -8 --------- Run | Scr Mat Min Exi Min Mat Machines Accessed 3 | . . . 2 . 1 Terminals 1 | . . . . . 1 Fabricators . | . . . . . . Repair Stations . | . . . . . . Recycling Units . | . . . . . . Scanalyzers . | . . . . . . Garrison Access . | . . . . . . Total Hacks 4 | . . . 2 . 2 Successful 3 | . . . 2 . 1 Failed 1 | . . . . . 1 Catastrophic . | . . . . . . Database Lockouts . | . . . . . . Manual 3 | . . . 1 . 2 Terminals 2 | . . . . . 2 Fabricators . | . . . . . . Repair Stations . | . . . . . . Recycling Units . | . . . . . . Scanalyzers . | . . . . . . Garrison Access . | . . . . . . Terminal Hacks 2 | . . . 2 . . Record 1 | . . . 1 . . EX-Prototype ID Bank 1 | . . . 1 . . Fabricator Hacks . | . . . . . . Repair Station Hacks . | . . . . . . Recycling Unit Hacks . | . . . . . . Scanalyzer . | . . . . . . Garrison Access Hacks . | . . . . . . Unauthorized Hacks 1 | . . . . . 1 Terminals 1 | . . . . . 1 Track 1 | . . . . . 1 Fabricators . | . . . . . . Repair Stations . | . . . . . . Recycling Units . | . . . . . . Scanalyzers . | . . . . . . Garrison Access . | . . . . . . Data Cores Recovered . | . . . . . . Used . | . . . . . . Hacking Detections 1 | . . . . . 1 Full Trace Events . | . . . . . . Feedback Events . | . . . . . . Feedback Blocked . | . . . . . . Robot Schematics Acquired . | . . . . . . Robots Built . | . . . . . . Authchips . | . . . . . . Time . | . . . . . . Total Robot Build Rating . | . . . . . . Part Schematics Acquired . | . . . . . . Parts Built . | . . . . . . Authchips . | . . . . . . Time . | . . . . . . Total Part Build Rating . | . . . . . . Parts Repaired . | . . . . . . Time . | . . . . . . Parts Recycled . | . . . . . . Recycled Matter . | . . . . . . Retrieved Matter . | . . . . . . Retrieved Components . | . . . . . . Parts Scanalyzed . | . . . . . . Part Schematics Acquired . | . . . . . . Parts Damaged . | . . . . . . Bothacking | -11 -10 -10 -10 -9 -8 ------------ Run | Scr Mat Min Exi Min Mat Used RIF Installer . | . . . . . . Robots Hacked . | . . . . . . Non-combat . | . . . . . . Combat . | . . . . . . Robot Hacks Applied . | . . . . . . Relay Couplers Released . | . . . . . . Fabnet Peak Effective % . | . . . . . . Robots Rewired . | . . . . . . Allies Hacked . | . . . . . . Hacks Repelled . | . . . . . . Allies | -11 -10 -10 -10 -9 -8 -------- Run | Scr Mat Min Exi Min Mat Total Allies . | . . . . . . Largest Group . | . . . . . . Highest-Rated Group . | . . . . . . Highest-Rated Ally . | . . . . . . Total Orders . | . . . . . . Ally Attacks . | . . . . . . Total Damage . | . . . . . . Kills . | . . . . . . Allies Corrupted . | . . . . . . Allies Melted . | . . . . . . Intel | -11 -10 -10 -10 -9 -8 ------- Run | Scr Mat Min Exi Min Mat Robot Analysis Total . | . . . . . . Derelict Logs Recovered . | . . . . . . Drone Launches . | . . . . . . Drone Recoveries . | . . . . . . Exploration | -11 -10 -10 -10 -9 -8 ------------- Run | Scr Mat Min Exi Min Mat Turns Passed 1230 | 47 37 99 554 130 363 Spaces Moved 890 | 39 43 75 419 82 232 Core 1 | 1 . . . . . Treads 294 | . . . 108 82 104 Legs 316 | . . 5 311 . . Wheels 151 | 38 43 70 . . . Hover . | . . . . . . Flight 128 | . . . . . 128 Fastest Speed 34 | 50 80 80 120 160 34 Average Speed 114 | 79 80 82 130 160 90 Slowest Speed 240 | 80 80 120 160 160 240 Overloaded Moves . | . . . . . . Propulsion Burnouts . | . . . . . . Robots Hopped . | . . . . . . Cave-ins Triggered . | . . . . . . Exploration Rate (%) 25 | 4 15 21 79 23 10 Regions Visited 5 Branch Regions 3 Pre-discovered Areas 1 | . . . 1 . . Known Exits Taken . | . . . . . . Unknown Exits Taken 5 | 1 1 1 1 1 . Scrap Searched . | . . . . . . Spaces Dug . | . . . . . . Terrain Destroyed 3 | . . 3 . . . Melee . | . . . . . . Projectile . | . . . . . . AOE 3 | . . 3 . . . Terrain Rammed . | . . . . . . Walls Destroyed . | . . . . . . Machines Disabled . | . . . . . . Actions | -11 -10 -10 -10 -9 -8 --------- Run | Scr Mat Min Exi Min Mat Total 1062 | 51 44 100 428 81 358 Wait 89 | . . 12 . . 77 Move 885 | 38 42 74 418 81 232 Hop . | . . . . . . Pick Up 22 | 6 1 . 3 . 12 Fast Attach 8 | 6 1 . . . 1 Attach 10 | . . 2 . . 8 Detach 3 | . . . . . 3 Swap 12 | 1 . 1 3 . 7 Drop 10 | . . 1 4 . 5 Fire 23 | . . 10 . . 13 Melee . | . . . . . . Ram . | . . . . . . Kick . | . . . . . . Crush . | . . . . . . Escape Stasis . | . . . . . . Rewire . | . . . . . . Trap . | . . . . . . Miscellaneous . | . . . . . . Route ------- -11/Scrapyard -10/Materials -10/Mines -10/Exiles -9/Mines (discovered 2 exits: *Mat x2) -8/Materials History --------- Turn | Location | Event 26 | -11/Scrapyard | Discovered new exit (range 15) 48 | -11/Scrapyard | Entered Materials 75 | -10/Materials | Discovered new exit (range 7) 85 | -10/Materials | Entered Mines 180 | -10/Mines | Deemed a non-threat by the Exiles lab entrance 180 | -10/Mines | Discovered new exit (range 5) 184 | -10/Mines | Entered Exiles 213 | -10/Exiles | Met 8R-AWN 234 | -10/Exiles | Met EX-HEX 305 | -10/Exiles | Build established: Mutant 305 | -10/Exiles | Met EX-DEC 329 | -10/Exiles | Visited The Gauntlet 394 | -10/Exiles | Learned location of Zion (-6) 510 | -10/Exiles | Met EX-BIN 525 | -10/Exiles | Aligned with FarCom system 526 | -10/Exiles | Given EX-Vault access code 556 | -10/Exiles | Opened EX-Vault 566 | -10/Exiles | Found XL Autogun Array 579 | -10/Exiles | Found AWS/Autocannon 614 | -10/Exiles | Warned to stay clear of 0b10 Research branches 716 | -10/Exiles | Discovered new exit (range 14) 738 | -10/Exiles | Left Exiles lab with AWS/Autocannon 738 | -10/Exiles | Entered Mines 767 | -9/Mines | Discovered new exit (range 15) 841 | -9/Mines | Discovered new exit (range 5) 868 | -9/Mines | Entered Materials 868 | -8/Materials | Evolved 4 slots: Propulsion x1, Utility x2, Weapon x1 1231 | -8/Materials | Self-destructed Last Messages --------------- 01096_ Acquired 34 matter. 01119_ Lgt. Nuclear Core melted. 01119_ G-47 Trooper destroyed. 01126_ Acquired Imp. Heat Sink. 01128_ Acquired 10 matter. 01147_ Acquired Lgt. Nuclear Core. 01160_ Dropped Lgt. Ion Engine. 01167_ K-01 Serf collects debris. 01174_ Acquired Imp. Heat Sink. 01174_ K-01 Serf collects debris. 01175_ K-01 Serf destroyed. 01175_ K-01 Serf collects debris. 01176_ O-16 Technician: "IFF HANDSHAKE FAILED. SECURING TERMINAL." 01177_ K-01 Serf collects debris. 01178_ Acquired 10 matter. 01181_ K-01 Serf collects debris. 01183_ ALERT: Hostiles spotted, dispatching reinforcements to Terminal M006. 01206_ ALERT: Suspicious intruders detected, dispatching Specialist reinforcements to area. Map ----- +----------------------------------------------------+ | ????????????????????????????????????????# [[ #?? | | ????????????????????????????????????????# [[ #?? | | ????????????????????????????????????????# #?? | | ?????????????????????????????????######## ##? | | ?????????????????????????????????# #? | | ?????????????????????????????????# #? | | ?????????????????????????????????# = #? | | ?????????????????????????????????# #######%####? | | ?????????????????????????????????# #?# % #?? | | ?????????????????????????????????# #?# #?? | | ?????????????????????????????????# #?# #?? | | ?????????????????????############# #?# #?? | | ?????????????????????# # #?# #?? | | ?????????????????????# [""" =! # #?# k #?? | | ?????????????????????# """ =! # #?# k #? | | ?????????????????????# """ # #?# #? | | ????????????????w????# """ # #?# #? | | ?????????????????????# """ + #?# =%*= #? | | ????????????????w????# # #?# =!%%%[#? | | ?????????????????????##### ####### #?######+### | | ???????????????????############### ########r## | | ??????????????????? # T | | ??????????????????+ """ """ """ # ########## | | ???????????????x??#x""" """ """ + + o # | | ??????????????????# """ """ """ # ## ""## | | ??????????????????# @ # ## T"#? | | ??????????????????# ######## ""#? | | ??????????????????###############??????#[[[ #? | | ???????????????????????????????????????#[[[ #? | | ???????????????????????????????????????#[[[ +? | | ???????????????????????????????????????# #?? | | ???????????????????????????????????????# #?? | | ???????????????????????????????????????? #?? | | ???????????????????????????????????????? #?? | | ????????????????????????????????????????#####+##?? | | ????????????????g????????????????????????????????? | | ????????????????g????????????????????gg??????????? | | ?????????????????????????????????????????????????? | | ?????????????????????????????????????????????????? | | ?????????????????????????????????????????????????? | | ?????????????????????????????????????????????????? | | ?????????????????????????????????????????????????? | | ?????????????????????????????????????????????????? | | ?????????????????????????????????????????????????? | | ?????????????????????????????????????????????????? | | ?????????????????????????????????????????????????? | | ?????????????????????????????????????????????????? | | ?????????????????????????????????????????????????? | | ?????????????????????????????????????????????????? | | ?????????????????????????????????????????????????? | +----------------------------------------------------+ Best States ------------- Heat Dissipation 45 Energy Generation 14 Energy Capacity 160 Matter Stores 300 Matter Capacity 300 Sight Range 16 Terrain Scan Density 10 Evasion (%) 63 Targeting Accuracy 5 Recoil Reduction 3 Particle Charging 15 Item Schematics ----------------- None Robot Schematics ------------------ None Fabricated ------------ Nothing Alien Tech Used ----------------- None Achievements -------------- None Challenges ------------ None Game ------ Seed BiometalNavigationDiverter Manual? 0 Play Time 00:19:17 Cumulative 31.1 hours Start 2022.05.02 @ 15:24:46 End 2022.12.08 @ 15:48:07 Sessions 6 Manual Loads 0 Difficulty Rogue Special Mode None Game No. 20 Rogue 20 Adventurer 0 Explorer 0 Win Type - Total 0 Types 0/0/0/0/0/0/0/0/0 Lore% 33 Gallery% 29 Achievement% 28 Wizard Run 0 Options --------- ASCII 0 Keyboard 0 Movement Mouse Keybinds 0 Fullscreen 2 Font 18/TerminusBold Map View 76x50 Tactical HUD 1 Map Filters NONE Filters NONE Steam 1 RUN: 74dd5409-dfa3-49a3-a4bd-950bebd17c61